Cogmind - Beta 16 @@@ ROGUE MODE // 2025.10.31 @ 15:14:06 Player: kiul Result: Destroyed by S-27 Virus with Autogun Performance ------------- Evolutions (5) 2500 Regions Visited (10) 2000 Robots Destroyed (163) 815 Value Destroyed (6165) 6165 Prototype IDs (9) 180 Alien Tech Used (0) 0 Bonus (1145) 1145 TOTAL SCORE: 12805 Bonus ------- High Alert Combat Kills 995 Follower Combat Kills 485 Entered Garrisons 200 Friendly Fire -535 Cogmind --------- Core Integrity 0/1000 Matter 219/300 Energy 98/100 System Corruption 51% Temperature Cool (0) Movement Core (50) Location -5/Factory Parts ------- > --- POWER (2) -------- (None) > --- PROPULSION (4) --- (None) > --- UTILITY (8) ------ Advanced Targeting Computer Improved Melee Analysis Suite Graphene Brace Hacking Suite > --- WEAPON (3) ------- (None) > --- INVENTORY (5) ---- High-capacity Storage Unit High-capacity Matter Pod (200) Relay Coupler [Grunt] (23) Relay Coupler [Grunt] (29) Datajack Peak State ------------ > --- POWER ------------ Micro Nuclear Core > --- PROPULSION ------- Light Treads Armored Treads Improved Medium Treads Improved Medium Treads > --- UTILITY ---------- Cryofiber Web High-capacity Storage Unit Improved Heavy Armor Plating Graphene Brace Hacking Suite System Shield > --- WEAPON ----------- Hypervelocity Gauss Rifle Rocket Array Rocket Array > --- INVENTORY -------- Improved Deuterium Engine Improved Cooling System High-capacity Matter Pod Advanced Targeting Computer Hardened Medium Armor Plating Hardened Medium Armor Plating Improved Heavy Armor Plating Hardlight Generator System Shield Relay Coupler [Grunt] Relay Coupler [Grunt] High-powered Tractor Beam Gatling Laser Light EM Pulse Cannon Flak Gun Datajack [Rating: 65] Favorites ----------- Power Micro Nuclear Core Engine Reinforced Deuterium Engine Power Core Micro Nuclear Core Propulsion Armored Treads Treads Armored Treads Leg Carbon-fiber Leg Wheel Wheel Hover Unit Antigrav System Utility Hacking Suite Device Cryofiber Web Storage High-capacity Storage Unit Processor Advanced Targeting Computer Hackware Hacking Suite Protection Hardened Medium Armor Plating Weapon Assault Cannon Energy Gun Gatling Laser Energy Cannon Light EM Pulse Cannon Ballistic Gun Enhanced Autogun Ballistic Cannon Assault Cannon Launcher Rocket Array Impact Weapon Maul Build | -11 -10 -9 -8 -8 -7 -6 -6 -6 -6 -5 ------- Run | Yrd Mat Mat Mat Gar Fac Fac Was Fac Ext Fac Slots Evolved 10 | . . 2 2 . 2 2 . . . 2 Power 1 | . . . . . . . . . . 1 Propulsion 2 | . . . 1 . . 1 . . . . Utility 6 | . . 1 1 . 2 1 . . . 1 Weapon 1 | . . 1 . . . . . . . . Parts Attached 101 | 6 3 12 20 8 6 3 1 . 9 33 Power 11 | 1 . 1 1 2 1 . . . 1 4 Engine 5 | 1 . 1 . 1 . . . . 1 1 Core 6 | . . . 1 1 1 . . . . 3 Reactor . | . . . . . . . . . . . Propulsion 26 | 2 . . 8 2 . 2 . . 2 10 Treads 16 | . . . 8 2 . 2 . . 2 2 Leg 5 | . . . . . . . . . . 5 Wheel 4 | 2 . . . . . . . . . 2 Hover 1 | . . . . . . . . . . 1 Flight . | . . . . . . . . . . . Utility 30 | 1 1 4 6 1 3 1 . . 4 9 Device 10 | . . 2 1 . 2 . . . 2 3 Storage 3 | 1 1 . 1 . . . . . . . Processor 2 | . . . . . . . . . . 2 Hackware 3 | . . . 1 . 1 . . . . 1 Protection 12 | . . 2 3 1 . 1 . . 2 3 Artifact . | . . . . . . . . . . . Weapon 34 | 2 2 7 5 3 2 . 1 . 2 10 Energy Gun 2 | . . . 1 . . . . . 1 . Energy Cannon 6 | . . 1 1 . 1 . . . . 3 Ballistic Gun 12 | 2 1 1 2 1 . . . . 1 4 Ballistic Cannon 7 | . . 4 1 1 . . . . . 1 Launcher 5 | . 1 1 . 1 1 . 1 . . . Special Weapon . | . . . . . . . . . . . Impact Weapon 2 | . . . . . . . . . . 2 Slashing Weapon . | . . . . . . . . . . . Piercing Weapon . | . . . . . . . . . . . Special Melee Weapon . | . . . . . . . . . . . Unidentified Prototypes 7 | . . 1 3 . 1 . . . . 2 Corrupted Parts 7 | . . . . . . . . . . 7 System Corruption 31 | . . . . . . . . . . 31 Parts Lost 65 | . . 4 4 3 4 . 1 . 9 40 Power 9 | . . 1 . 1 1 . 1 . . 5 Propulsion 17 | . . 1 . . 1 . . . 3 12 Utility 16 | . . . 1 1 1 . . . 4 9 Weapon 23 | . . 2 3 1 1 . . . 2 14 Highest Loss Streak 10 | . . 2 1 3 2 . 1 . 5 10 To Critical Strikes . | . . . . . . . . . . . Average Backups 15 | 2 7 12 15 18 17 15 15 16 16 7 Power 1 | . 1 1 1 1 . 1 1 1 1 . Propulsion 1 | 1 4 5 1 1 1 . . . . . Utility 9 | . . 3 7 12 12 10 10 11 11 4 Weapon 2 | . 1 2 3 2 2 3 3 3 2 1 Tool/Special . | . . . . . . . . . . . Unused Backups 25 | 2 1 2 8 5 3 . . . . 4 Power 5 | . . . 5 . . . . . . . Propulsion 5 | 2 1 2 . . . . . . . . Utility 13 | . . . 3 5 2 . . . . 3 Weapon 1 | . . . . . 1 . . . . . Tool/Special 1 | . . . . . . . . . . 1 Average Slot Usage (%) 93 | . 85 93 99 99 98 92 83 86 82 69 Engine 5 | . 14 11 5 5 2 . . 6 5 4 Core 2 | . . . 3 3 4 6 1 . . 2 Treads 20 | . . . 26 27 22 25 21 20 18 6 Wheel 2 | . 28 19 . . . . . . . 1 Device 9 | . . 9 9 9 15 13 13 13 13 10 Storage 8 | . 14 11 9 9 7 6 6 6 6 4 Hackware 8 | . . . 8 9 14 13 13 13 10 7 Protection 7 | . . 9 9 9 6 5 6 6 6 2 Energy Cannon 1 | . . 1 4 . 1 6 . . . 3 Ballistic Gun 12 | . 20 6 13 18 12 6 6 6 8 3 Ballistic Cannon 6 | . . 17 9 7 6 . . . . . Launcher 2 | . 7 7 . 1 . 6 12 13 8 . Peak Build Rating 65 | 6 7 17 38 46 55 62 65 59 60 60 Average Rating 38 | 4 6 13 31 41 53 61 58 59 55 43 On Entrance 35 | . 6 7 17 36 45 49 62 59 59 48 Avg Prop Armor Cover (%) 12 | . . . 7 . . . . . . 12 Naked Turns . | . . . . . . . . . . . Heaviest Build 86 | 11 27 49 64 78 79 80 83 79 81 86 Greatest Support 100 | 20 20 20 69 80 80 100 100 70 70 40 Greatest Overweight (x) 5 | . 1 4 1 1 1 . 1 1 1 5 Average Overweight (x) . | . . 2 . . . . . 1 1 2 Largest Inventory Capacity 20 | 8 15 15 20 20 20 20 20 20 20 20 Average Capacity 18 | 7 13 15 16 20 20 20 20 20 20 19 Most Carried 20 | 4 9 15 19 20 20 19 17 18 19 12 Average Carried 16 | 2 7 12 15 19 19 16 16 17 16 7 Final Capacity 20 | 8 15 15 20 20 20 20 20 20 20 5 Final Carried 20 | 4 9 15 18 20 20 17 17 18 12 5 Class Distribution -------------------- 67% | Tank 15% | Hacker-Tank 6% | Mutant 5% | Scavenger-Mutant Dominant Class ---------------- Mutant | -10/Materials Tank | -9/Materials Tank | -8/Materials Tank | -8/Garrison Hacker-Tank | -7/Factory Hacker-Tank | -6/Factory Hacker-Tank | -6/Waste Hacker-Tank | -6/Factory Hacker-Tank | -6/Extension Scavenger-Mutant | -5/Factory Resources | -11 -10 -9 -8 -8 -7 -6 -6 -6 -6 -5 ----------- Run | Yrd Mat Mat Mat Gar Fac Fac Was Fac Ext Fac Matter Collected 5560 | 272 60 652 790 1124 423 . 779 46 670 744 Remotely 452 | . . . . . . . . . 378 74 Salvage Created 7017 | 138 175 647 1299 915 651 . 1234 319 604 1035 Parts 335 | 9 17 34 81 56 44 . 4 15 38 37 Haulers Intercepted 16 | . . 3 5 . 4 . . . 1 3 Recyclers Shooed . | . . . . . . . . . . . Parts Field Recycled . | . . . . . . . . . . . Retrieved Matter . | . . . . . . . . . . . Parts Self-Destructed . | . . . . . . . . . . . Prevented . | . . . . . . . . . . . Parts Restored . | . . . . . . . . . . . Kills | -11 -10 -9 -8 -8 -7 -6 -6 -6 -6 -5 ------- Run | Yrd Mat Mat Mat Gar Fac Fac Was Fac Ext Fac Combat Hostiles Destroyed 119 | . 10 12 27 28 9 . 6 8 8 11 Melee 2 | . . . . . . . . . . 2 Guns 30 | . 4 2 4 6 5 . . 1 3 5 Cannons 39 | . . 5 23 7 2 . . . 1 1 AOE 46 | . 6 5 . 15 2 . 6 7 4 1 Classes Destroyed 17 | 2 3 4 3 1 1 . 1 1 1 . Worker 5 | . . . 1 . . . . 1 3 . Builder 7 | . . 1 1 . . . . 1 4 . Tunneler 3 | 2 . . . . 1 . . . . . Hauler 16 | . . 3 5 . 4 . . . 1 3 Recycler 6 | 1 . 1 . . . . . . 2 2 Operator 2 | . 1 1 . . . . . . . . Watcher 3 | . . 1 1 . . . . . 1 . Swarmer 28 | . 6 . 9 6 3 . . 1 . 3 Grunt 45 | . 4 7 8 14 2 . . 5 3 2 Duelist 2 | . . . . . . . . 1 1 . Sentry 25 | . . 5 8 7 2 . . . 2 1 Specialist 2 | . . . . 1 . . . 1 . . Hunter 6 | . . . 1 . 1 . . . . 4 Programmer 2 | . . . . . 1 . . . . 1 Heavy 1 | . . . 1 . . . . . . . Behemoth 2 | . . . . . . . . . 2 . Compactor 6 | . . . . . . . 6 . . . Wasp 2 | . . . . . . . . 2 . . Best Kill Streak 14 | 3 3 5 4 14 3 . 3 6 8 3 Combat Bots Only 14 | . 3 4 4 14 3 . 3 4 4 3 Max Kills in Single Turn 6 | 1 2 3 1 4 2 . 2 6 4 1 Gunslinging . | . . . . . . . . . . . Exploded 4 | . 2 2 . 4 2 . 2 3 1 1 Melee 1 | . . . . . . . . . . 1 Uniques/NPCs Destroyed . | . . . . . . . . . . . Combat | -11 -10 -9 -8 -8 -7 -6 -6 -6 -6 -5 -------- Run | Yrd Mat Mat Mat Gar Fac Fac Was Fac Ext Fac Hostile Shots Fired 997 | . 19 50 103 124 65 . 1 9 281 345 Missed 339 | . 8 11 36 38 25 . . 1 131 89 Hits 658 | . 11 39 67 86 40 . 1 8 150 256 Melee 2 | . . . . . . . 1 . 1 . Projectile 656 | . 11 39 67 86 40 . . 8 149 256 AOE 2 | . . . . . . . . . . 2 Critical Strikes 27 | . . 1 6 4 . . 1 . 6 9 Actively Blocked 16 | . . . . . . . 1 . 6 9 Damage Taken 11766 | . 110 566 1106 1369 562 . 357 254 2334 5108 Core 1571 | . . 69 103 106 10 . 9 41 233 1000 Absorbed by Shields 8 | . . . . . . . . . . 8 Redirected to Shielding 86 | . . . . . . . . . 86 . Regen/Repaired (Parts) 495 | . . . 158 . . . 166 124 47 . Core Remaining (%) 84 | 100 100 82 . 62 98 . . . 66 . Volleys Fired 345 | 3 18 32 73 104 24 . 8 3 23 57 Largest 3 | 2 2 3 3 3 3 . 3 3 3 3 Hottest 164 | 40 50 109 149 95 134 . 123 123 164 164 Shots Fired 752 | 6 36 84 200 199 68 . 24 9 46 80 Gun 367 | 6 29 29 68 113 36 . 8 3 25 50 Cannon 320 | . . 48 132 73 31 . . . 6 30 Launcher 65 | . 7 7 . 13 1 . 16 6 15 . Special . | . . . . . . . . . . . Kinetic 582 | 6 29 73 141 186 59 . 8 3 23 54 Thermal 5 | . . . . . . . . . 2 3 Explosive 65 | . 7 7 . 13 1 . 16 6 15 . Electromagnetic 100 | . . 4 59 . 8 . . . 6 23 Robot Hit Streak 18 | 5 5 13 17 10 10 . 18 5 13 7 Robot Miss Streak 6 | . 6 3 5 3 4 . 2 5 3 5 Penetration Max 1 | . . . . . 1 . . . . . Secondary Targets 1 | . . . . . . . . . . 1 Max Gunslinging Chain 1 | . . . . . . . . . . 1 Shots Hit Robots 461 | 5 17 57 119 92 43 . 21 2 31 74 Core Hits 378 | 4 16 29 54 64 25 . 26 39 88 33 Critical Kills 8 | . . . . . 5 . . 1 2 . Critical Parts Destroyed 8 | . . . . 1 2 . 1 . . 4 Critical Strikes 26 | . . 1 1 5 8 . 2 1 3 5 Destroy 15 | . . . . 1 7 . 2 1 3 1 Blast 6 | . . 1 . 4 1 . . . . . Corrupt 1 | . . . 1 . . . . . . . Smash 4 | . . . . . . . . . . 4 Melee Attacks 26 | . . . . . . . . . . 26 Impact 26 | . . . . . . . . . . 26 Slashing . | . . . . . . . . . . . Piercing . | . . . . . . . . . . . Sneak Attacks 5 | . . . . . . . . . . 5 Combat Hostiles . | . . . . . . . . . . . Follow-up Attacks 1 | . . . . . . . . . . 1 Damage Inflicted 18367 | 48 599 1252 2433 3284 736 . 3702 1140 2606 2567 Guns 2722 | 48 120 174 378 803 260 . 46 6 233 654 Cannons 4210 | . . 600 1936 584 369 . . . 46 675 Explosions 10444 | . 479 478 84 1897 86 . 3656 1134 2324 306 Melee 932 | . . . . . . . . . . 932 Ramming 59 | . . . 35 . 21 . . . 3 . Kinetic 5165 | 48 120 730 1337 1387 513 . 46 6 223 755 Thermal 137 | . . . 84 . . . . . 10 43 Explosive 10360 | . 479 478 . 1897 86 . 3656 1134 2324 306 Electromagnetic 1714 | . . 44 977 . 116 . . . 46 531 Impact 932 | . . . . . . . . . . 932 Slashing . | . . . . . . . . . . . Piercing . | . . . . . . . . . . . Highest Corruption 51 | . . . . . 7 . . . . 51 Average Corruption 17 | . . . . . 5 . . . . 25 Corruption Purged . | . . . . . . . . . . . Corruption Blocked . | . . . . . . . . . . . Effects 49 | . . . . . 10 . . . . 39 Message Errors 12 | . . . . . 4 . . . . 8 Matter Fused 10 | . . . . . 1 . . . . 9 Heat Flow Errors 5 | . . . . . 1 . . . . 4 Energy Discharges 4 | . . . . . 2 . . . . 2 Parts Fused 1 | . . . . . . . . . . 1 Data Loss (minor) 5 | . . . . . 1 . . . . 4 Data Loss (major) 2 | . . . . . . . . . . 2 Misfires 1 | . . . . . 1 . . . . . Misdirections 2 | . . . . . . . . . . 2 Weapon Failures 7 | . . . . . . . . . . 7 Overload Shots . | . . . . . . . . . . . Overflow Damage 615 | . 1 . 14 163 . . 1 27 9 400 Projectiles 17 | . . . 14 . . . . . . 3 Explosions 282 | . 1 . . 163 . . 1 27 9 81 Melee 316 | . . . . . . . . . . 316 Knockbacks 26 | . . 4 6 7 1 . . . . 8 Impact 2 | . . . . . . . . . . 2 Kinetic 24 | . . 4 6 7 1 . . . . 6 Secondary . | . . . . . . . . . . . Self-Inflicted Damage 1123 | . 10 11 70 60 57 . 342 102 272 199 Shots 45 | . 1 1 2 3 3 . 18 4 11 2 Rammed 8 | . . . 4 . 3 . . . 1 . Targets Rammed 9 | . . . 5 . 3 . . . 1 . Kicked . | . . . . . . . . . . . Crushed 1 | . . . 1 . . . . . . . Highest Temperature 426 | . 26 37 239 364 184 . . . 204 426 Average Temperature 94 | . 11 15 59 187 74 . . . 95 67 Received Heat Transfer 1920 | . 24 228 270 603 57 . . 45 552 141 Effects 3 | . . . . 1 . . . . 1 1 Shutdowns 1 | . . . . . . . . . . 1 Energy Bleed 1 | . . . . . . . . . 1 . Interference 1 | . . . . 1 . . . . . . Siege Activations . | . . . . . . . . . . . Martial Activations . | . . . . . . . . . . . Shielding Activations . | . . . . . . . . . . . Robots Disrupted . | . . . . . . . . . . . Combat Hostiles . | . . . . . . . . . . . Robots Corrupted 4 | . . . . . . . . . . 4 Combat Hostiles 2 | . . . . . . . . . . 2 Parts Fried 11 | . . . 2 . . . . . . 9 Impact Corruptions 12 | . . . . . . . . . . 12 Robots Melted . | . . . . . . . . . . . Combat Hostiles . | . . . . . . . . . . . Parts Melted . | . . . . . . . . . . . Heat Transferred 175 | . . . 50 . . . . . 25 100 Parts Sabotaged . | . . . . . . . . . . . Parts Stolen . | . . . . . . . . . . . Parts Stripped . | . . . . . . . . . . . Power Chain Reactions 2 | . . . 2 . . . . . . . Alert | -11 -10 -9 -8 -8 -7 -6 -6 -6 -6 -5 ------- Run | Yrd Mat Mat Mat Gar Fac Fac Was Fac Ext Fac Maximum Alert Level 5 | . . 1 1 5 5 3 1 3 2 1 Low Security (%) 34 | 100 100 98 54 3 . . . 6 . 85 Level 1 17 | . . 1 45 2 . . 100 . 41 14 Level 2 5 | . . . . 3 . . . 58 58 . Level 3 8 | . . . . 16 . 100 . 33 . . Level 4 4 | . . . . 13 . . . . . . Level 5 29 | . . . . 60 100 . . . . . High Security . | . . . . . . . . . . . Max Security . | . . . . . . . . . . . Peak Influence 3497 | 10 175 204 257 3497 1882 916 308 875 441 259 Initial 1835 | . . 31 65 125 1835 916 296 151 424 205 Average 937 | 1 89 126 167 1888 1774 882 272 559 401 92 Influence Increases 7681 | 15 282 526 859 3442 457 . 80 1108 287 625 Destroy 0b10 Robot/C 2560 | . 200 240 540 620 200 . . 380 160 220 Destroy 0b10 Robot/NC 230 | 15 5 35 40 10 25 . . 20 55 25 Destroy Leader 538 | . 30 78 172 40 78 . . 82 12 46 Allied During Kill 351 | . . . . 8 4 . . 339 . . Successful Hack 30 | . 7 . 4 6 4 . . 3 6 . Disable Machine 405 | . . 60 15 45 90 . . 135 . 60 Anti-Garrison Action 2550 | . . . . 2550 . . . . . . Destroy Structure 612 | . 40 53 28 103 41 . 80 149 54 64 Partial Spotted 60 | . . . 45 . 15 . . . . . Lose Combat Pursuer 345 | . . 60 15 60 . . . . . 210 Influence Decreases 7621 | 15 207 446 821 138 2084 1024 710 457 733 986 Entered New Map 4092 | . . 44 90 68 1662 954 550 65 443 216 Time Decay 2702 | 15 207 362 691 . 362 70 150 222 190 433 Lost Part 587 | . . 40 40 30 40 . 10 . 90 337 Lost Ally 240 | . . . . 40 20 . . 170 10 . Squads Dispatched 25 | . 1 1 5 . 6 . . 3 1 8 Investigation 6 | . 1 . 4 . 1 . . . . . Extermination 6 | . . . . . 2 . . 1 . 3 Reinforcement 7 | . . 1 1 . . . . 2 . 3 Assault 4 | . . . . . 3 . . . 1 . Garrison 2 | . . . . . . . . . . 2 Intercept . | . . . . . . . . . . . Searches Triggered . | . . . . . . . . . . . Construction Impeded . | . . . . . . . . . . . Haulers Reinforced 1 | . . . . . . . . . . 1 Active Scanning Responses . | . . . . . . . . . . . Cargo Convoy Interrupts . | . . . . . . . . . . . Stealth | -11 -10 -9 -8 -8 -7 -6 -6 -6 -6 -5 --------- Run | Yrd Mat Mat Mat Gar Fac Fac Was Fac Ext Fac Distress Signals 6 | . . 2 1 . . . . 1 1 1 Communications Jammed . | . . . . . . . . . . . Distress Signals . | . . . . . . . . . . . Times Spotted 189 | . 12 18 45 32 12 . 6 12 11 41 Peak Tracking Total 11 | . 3 7 4 9 3 . 3 7 5 11 Tactical Retreats 13 | . . 2 1 1 . . . . . 9 Traps | -11 -10 -9 -8 -8 -7 -6 -6 -6 -6 -5 ------- Run | Yrd Mat Mat Mat Gar Fac Fac Was Fac Ext Fac Traps Triggered 18 | . 1 . 3 5 8 1 . . . . Indirectly . | . . . . . . . . . . . Trap Hack Attempts . | . . . . . . . . . . . Triggered . | . . . . . . . . . . . Disarmed . | . . . . . . . . . . . Reprogrammed . | . . . . . . . . . . . Reused . | . . . . . . . . . . . Traps Extracted . | . . . . . . . . . . . Installed . | . . . . . . . . . . . Triggered . | . . . . . . . . . . . Machines | -11 -10 -9 -8 -8 -7 -6 -6 -6 -6 -5 ---------- Run | Yrd Mat Mat Mat Gar Fac Fac Was Fac Ext Fac Machines Disabled 31 | . . 4 1 7 6 . . 9 . 4 Max in Single Turn 4 | . . 2 1 1 4 . . 2 . 2 Garrison Relay 4 | . . . . 4 . . . . . . Machines Repaired . | . . . . . . . . . . . Machines Dismantled . | . . . . . . . . . . . Machines Sabotaged . | . . . . . . . . . . . Overloaded Fab Kills . | . . . . . . . . . . . Hacking | -11 -10 -9 -8 -8 -7 -6 -6 -6 -6 -5 --------- Run | Yrd Mat Mat Mat Gar Fac Fac Was Fac Ext Fac Machines Accessed 24 | . 3 1 10 3 4 . . 2 1 . Terminals 18 | . 3 1 5 3 3 . . 2 1 . Fabricators . | . . . . . . . . . . . Repair Stations 3 | . . . 2 . 1 . . . . . Recycling Units . | . . . . . . . . . . . Scanalyzers 2 | . . . 2 . . . . . . . Garrison Access 1 | . . . 1 . . . . . . . Total Hacks 57 | . 5 3 30 5 7 . . 4 3 . Successful 26 | . 2 1 17 1 2 . . 2 1 . Failed 30 | . 3 2 12 4 5 . . 2 2 . Catastrophic 8 | . . 1 5 . 2 . . . . . Database Lockouts 1 | . . . 1 . . . . . . . Manual 21 | . 5 3 12 . 1 . . . . . Terminals 38 | . 5 3 13 5 5 . . 4 3 . Fabricators . | . . . . . . . . . . . Repair Stations 10 | . . . 8 . 2 . . . . . Recycling Units . | . . . . . . . . . . . Scanalyzers 8 | . . . 8 . . . . . . . Garrison Access 1 | . . . 1 . . . . . . . Terminal Hacks 11 | . 2 1 2 1 2 . . 2 1 . Robot Schematic 1 | . . 1 . . . . . . . . Robot Analysis 1 | . 1 . . . . . . . . . Prototype ID Bank 1 | . . . 1 . . . . . . . Open Door 3 | . . . . 1 . . . 1 1 . Open DSF 2 | . . . . . 1 . . 1 . . Registered Components 3 | . 1 . 1 . 1 . . . . . Fabricator Hacks . | . . . . . . . . . . . Repair Station Hacks 7 | . . . 7 . . . . . . . Scan Component 4 | . . . 4 . . . . . . . Repair 3 | . . . 3 . . . . . . . Recycling Unit Hacks . | . . . . . . . . . . . Scanalyzer 7 | . . . 7 . . . . . . . Insert Component 3 | . . . 3 . . . . . . . Analyze 3 | . . . 3 . . . . . . . Retrieve Study 1 | . . . 1 . . . . . . . Garrison Access Hacks 1 | . . . 1 . . . . . . . Unlock Access 1 | . . . 1 . . . . . . . Unauthorized Hacks . | . . . . . . . . . . . Terminals . | . . . . . . . . . . . Fabricators . | . . . . . . . . . . . Repair Stations . | . . . . . . . . . . . Recycling Units . | . . . . . . . . . . . Scanalyzers . | . . . . . . . . . . . Garrison Access . | . . . . . . . . . . . Data Cores Recovered 1 | . 1 . . . . . . . . . Used . | . . . . . . . . . . . Hacking Detections 20 | . 2 1 9 2 4 . . 1 1 . Full Trace Events 5 | . . . 3 1 1 . . . . . Feedback Events . | . . . . . . . . . . . Feedback Blocked . | . . . . . . . . . . . Robot Schematics Acquired 1 | . . 1 . . . . . . . . Robots Built . | . . . . . . . . . . . Authchips . | . . . . . . . . . . . Time . | . . . . . . . . . . . Total Robot Build Rating . | . . . . . . . . . . . Part Schematics Acquired 3 | . . . 3 . . . . . . . Parts Built . | . . . . . . . . . . . Authchips . | . . . . . . . . . . . Time . | . . . . . . . . . . . Total Part Build Rating . | . . . . . . . . . . . Part Studies Acquired 1 | . . . 1 . . . . . . . Parts Repaired 3 | . . . 3 . . . . . . . Time 156 | . . . 156 . . . . . . . Parts Recycled . | . . . . . . . . . . . Recycled Matter . | . . . . . . . . . . . Retrieved Matter . | . . . . . . . . . . . Retrieved Components . | . . . . . . . . . . . Parts Scanalyzed 3 | . . . 3 . . . . . . . Part Schematics Acquired 3 | . . . 3 . . . . . . . Parts Damaged . | . . . . . . . . . . . Bothacking | -11 -10 -9 -8 -8 -7 -6 -6 -6 -6 -5 ------------ Run | Yrd Mat Mat Mat Gar Fac Fac Was Fac Ext Fac Used RIF Installer . | . . . . . . . . . . . Robots Hacked . | . . . . . . . . . . . Non-combat . | . . . . . . . . . . . Combat . | . . . . . . . . . . . Robot Hacks Applied . | . . . . . . . . . . . Relay Couplers Released 18 | . . . . 18 . . . . . . Machine Destruction 18 | . . . . 18 . . . . . . Fabnet Peak Effective % . | . . . . . . . . . . . Robots Rewired 3 | . . . . 2 1 . . . . . Allies Hacked . | . . . . . . . . . . . Hacks Repelled . | . . . . . . . . . . . Allies | -11 -10 -9 -8 -8 -7 -6 -6 -6 -6 -5 -------- Run | Yrd Mat Mat Mat Gar Fac Fac Was Fac Ext Fac Total Allies 21 | . . . . 2 1 . 18 . . . Largest Group 18 | . . . . 2 1 . 18 18 1 . Highest-Rated Group 638 | . . . . 56 32 . 638 638 27 . Highest-Rated Ally 50 | . . . . 31 32 . 50 50 27 . Initial Warlord ECA Mod 5 | . . . . . 5 4 4 4 4 3 Total Orders . | . . . . . . . . . . . Ally Attacks 92 | . . . . 7 6 . . 79 . . Total Damage 3193 | . . . . 214 308 . . 2671 . . Kills 20 | . . . . 3 1 . . 16 . . Allies Corrupted . | . . . . . . . . . . . Allies Melted . | . . . . . . . . . . . Intel | -11 -10 -9 -8 -8 -7 -6 -6 -6 -6 -5 ------- Run | Yrd Mat Mat Mat Gar Fac Fac Was Fac Ext Fac Active Infowar (turns) . | . . . . . . . . . . . Robot Analysis Total 1 | . 1 . . . . . . . . . Derelict Logs Recovered . | . . . . . . . . . . . Drone Launches . | . . . . . . . . . . . Drone Recoveries . | . . . . . . . . . . . Exploration | -11 -10 -9 -8 -8 -7 -6 -6 -6 -6 -5 ------------- Run | Yrd Mat Mat Mat Gar Fac Fac Was Fac Ext Fac Turns Passed 12089 | 81 492 829 2837 4498 824 152 317 477 385 1197 Spaces Moved 6101 | 71 445 578 1268 2332 426 92 124 201 121 443 Core 35 | 1 . . . . . . . . . 34 Treads 4612 | . . . 1268 2332 426 92 124 201 121 48 Legs 130 | . . . . . . . . . . 130 Wheels 1261 | 70 445 578 . . . . . . . 168 Hover 63 | . . . . . . . . . . 63 Flight . | . . . . . . . . . . . Fastest Speed 50 | 50 80 95 160 163 163 162 162 229 225 50 Average Speed 169 | 79 91 111 180 179 165 162 213 229 230 208 Slowest Speed 330 | 80 95 140 210 210 240 162 229 229 240 330 Overloaded Moves . | . . . . . . . . . . . Propulsion Burnouts . | . . . . . . . . . . . Robots Hopped . | . . . . . . . . . . . Potential Cave-ins 1 | . . . . . . . . . . 1 Cave-ins Triggered . | . . . . . . . . . . . Exploration Rate (%) 38 | 4 61 50 88 79 18 4 78 8 24 11 Regions Visited 10 Branch Regions 1 Pre-discovered Areas . | . . . . . . . . . . . Known Exits Taken 1 | . . . 1 . . . . . . . Unknown Exits Taken 6 | 1 1 1 . . 1 . . 1 1 . Scrap Searched . | . . . . . . . . . . . Spaces Dug 2 | . . . 2 . . . . . . . Terrain Destroyed 685 | . 52 63 23 45 53 . 241 88 87 33 Melee . | . . . . . . . . . . . Projectile 20 | . . 2 17 . 1 . . . . . AOE 665 | . 52 61 6 45 52 . 241 88 87 33 Terrain Rammed . | . . . . . . . . . . . Walls Destroyed . | . . . . . . . . . . . Machines Disabled . | . . . . . . . . . . . Actions | -11 -10 -9 -8 -8 -7 -6 -6 -6 -6 -5 --------- Run | Yrd Mat Mat Mat Gar Fac Fac Was Fac Ext Fac Total 7156 | 87 496 700 1684 2502 496 96 142 206 168 579 Wait 380 | . 21 56 261 6 18 . 7 2 6 3 Move 6092 | 70 444 577 1267 2331 425 92 123 200 120 443 Hop . | . . . . . . . . . . . Pick Up 84 | 6 6 13 24 13 7 1 1 1 2 10 Fast Attach 32 | 6 1 3 3 . 2 . . . 3 14 Attach 51 | . . 3 12 3 4 3 . . 6 20 Detach 7 | . 1 . 3 . . . . . 1 2 Swap 51 | . 3 10 15 10 2 . 2 . 5 4 Drop 51 | 2 2 6 21 14 3 . 1 . 1 1 Fire 345 | 3 18 32 73 104 24 . 8 3 23 57 Melee 25 | . . . . . . . . . . 25 Ram . | . . . . . . . . . . . Kick . | . . . . . . . . . . . Crush 9 | . . . 5 . 3 . . . 1 . Escape Stasis 8 | . . . . 8 . . . . . . Rewire 21 | . . . . 13 8 . . . . . Trap . | . . . . . . . . . . . Miscellaneous . | . . . . . . . . . . . Route ------- -11/Scrapyard -10/Materials (discovered 3 exits: *Mat x2 / [*Min]) -9/Materials (discovered 3 exits: *Mat x2 / [*Sto]) -8/Materials (discovered 4 exits: *Fac x3 / Gar) -8/Garrison (discovered 3 exits: *Fac x3) -7/Factory -6/Factory -6/Waste -6/Factory -6/Extension -5/Factory History --------- Turn | Location | Event 11 | -11/Scrapyard | Discovered new exit (range 16) 82 | -11/Scrapyard | Entered Materials 318 | -10/Materials | Build established: Mutant 338 | -10/Materials | Discovered new exit (range 15) 441 | -10/Materials | Discovered new exit (range 16) 470 | -10/Materials | Discovered new exit (range 6) 574 | -10/Materials | Entered another Materials area 574 | -9/Materials | Evolved 2 slots: Utility x1, Weapon x1 986 | -9/Materials | Discovered new exit (range 3) 990 | -9/Materials | Build established: Tank 1072 | -9/Materials | Discovered new exit (range 5) 1271 | -9/Materials | Discovered new exit (range 5) 1403 | -9/Materials | Entered another Materials area 1403 | -8/Materials | Evolved 2 slots: Propulsion x1, Utility x1 1914 | -8/Materials | Repaired Corrupted Graphene Brace 2052 | -8/Materials | Repaired Arm. Treads 2086 | -8/Materials | Repaired Imp. Treads 2330 | -8/Materials | Discovered new exit (range 11) 3026 | -8/Materials | Central database locked down 3035 | -8/Materials | Discovered new exit (range 3) 3397 | -8/Materials | Discovered new exit (range 11) 4238 | -8/Materials | Identified exit to Garrison 4240 | -8/Materials | Entered Garrison 4318 | -8/Garrison | Triggered checkpoint 4385 | -8/Garrison | Garrison Relay disabled 4464 | -8/Garrison | Triggered checkpoint 4498 | -8/Garrison | Triggered checkpoint 4562 | -8/Garrison | Destroyed 14 combat bots 4660 | -8/Garrison | Discovered new exit (range 12) 4774 | -8/Garrison | Warlord forces raided the area 4970 | -8/Garrison | Triggered checkpoint 5036 | -8/Garrison | Triggered checkpoint 5076 | -8/Garrison | Triggered checkpoint 5153 | -8/Garrison | Garrison Relay disabled 5400 | -8/Garrison | Triggered checkpoint 5470 | -8/Garrison | Garrison Relay disabled 5651 | -8/Garrison | Discovered new exit (range 15) 5652 | -8/Garrison | Triggered checkpoint 5948 | -8/Garrison | Triggered checkpoint 5984 | -8/Garrison | Lost 3 parts (1p1u1w) 6075 | -8/Garrison | Garrison Relay disabled 6369 | -8/Garrison | Discovered new exit (range 10) 8738 | -8/Garrison | Entered Factory 8738 | -7/Factory | Evolved 2 slots: Utility x2 9047 | -7/Factory | Build established: Hacker-Tank 9138 | -7/Factory | First assault squad dispatched 9521 | -7/Factory | Found Prototype Launcher 9521 | -7/Factory | Identified Rocket Array 9524 | -7/Factory | Found Rocket Array 9550 | -7/Factory | Discovered new exit (range 5) 9562 | -7/Factory | Entered another Factory area 9562 | -6/Factory | Evolved 2 slots: Propulsion x1, Utility x1 9714 | -6/Factory | Sucked down chute 9714 | -6/Factory | Entered Waste 9760 | -6/Waste | Spotted C-40 Crusher 9763 | -6/Waste | Spotted C-40 Crusher 9763 | -6/Waste | Destroyed C-40 Crusher 9767 | -6/Waste | Spotted C-40 Crusher 9773 | -6/Waste | Crushed by Compactor (0 parts destroyed, 1 dropped) 9783 | -6/Waste | Destroyed C-40 Crusher 9789 | -6/Waste | Destroyed C-40 Crusher 9822 | -6/Waste | Spotted C-40 Crusher 9827 | -6/Waste | Spotted C-40 Crusher 9833 | -6/Waste | Destroyed C-40 Crusher 9833 | -6/Waste | Destroyed C-40 Crusher 9842 | -6/Waste | Spotted C-40 Crusher 9850 | -6/Waste | Destroyed C-40 Crusher 9920 | -6/Waste | Discovered new exit (range 14) 9958 | -6/Waste | Warlord forces began an assault 10031 | -6/Waste | Entered Factory 10031 | -6/Factory | Accompanied by 18 allies 10100 | -6/Factory | Lost 3 allies 10322 | -6/Factory | Lost 5 allies 10434 | -6/Factory | Lost 3 allies 10449 | -6/Factory | Discovered new exit (range 6) 10503 | -6/Factory | Lost 5 allies 10508 | -6/Factory | Entered Extension 10508 | -6/Extension | Accompanied by 1 ally 10705 | -6/Extension | Spotted B-75 Beast 10714 | -6/Extension | Destroyed B-75 Beast 10733 | -6/Extension | Disrupted transfer network 10734 | -6/Extension | Spotted B-75 Beast 10768 | -6/Extension | Destroyed B-75 Beast 10810 | -6/Extension | Lost 4 parts (1n3u) 10858 | -6/Extension | First assault squad dispatched 10869 | -6/Extension | Lost 5 parts (2n1u2w) 10888 | -6/Extension | Discovered new exit (range 3) 10893 | -6/Extension | Entered Factory 10893 | -5/Factory | Evolved 2 slots: Power x1, Utility x1 11055 | -5/Factory | Lost 5 parts (2u3w) 11325 | -5/Factory | Build established: Scavenger-Mutant 11418 | -5/Factory | Lost 9 parts (2p3n3u1w) 11478 | -5/Factory | Garrison activated, responded to threat 11675 | -5/Factory | System corruption reached 10% 11681 | -5/Factory | Core integrity fell below 50% 11708 | -5/Factory | Lost 7 parts (2p3n1u1w) 11815 | -5/Factory | System corruption reached 30% 11929 | -5/Factory | Lost 10 parts (1p4n5w) 12071 | -5/Factory | Core integrity fell below 20% 12077 | -5/Factory | Garrison activated, responded to threat 12090 | -5/Factory | Destroyed by S-27 Virus with Autogun Last Messages --------------- reinforcements to area. 11961_ System corrupted: Energy discharge (-30). 11964_ ALERT: Potential suspicious activity detected, Programmers report to Factory Zone 7V. 11980_ Acquired Imp. Melee Analysis Suite. 11986_ System corrupted: Matter fused (-5). 12017_ System corrupted: Component data lost. 12032_ System corrupted: Matter fused (-10). 12037_ Acquired Com. Wheel. 12065_ System corrupted: Substantial component data lost. 12065_ Com. Wheel destroyed. 12069_ Maul destroyed. 12071_ S-27 Virus destroyed. 12072_ Antigrav System destroyed. 12074_ S-27 Virus suffers critical hit (Blast). 12074_ S-27 Virus destroyed. 12075_ R-10 Processor shuts down. 12076_ W-25 Informer sends out distress signal. 12077_ R-10 Processor calls for garrison support. 12077_ ALERT: Activating Garrison Access F001. Map ----- +----------------------------------------------------+ | ?????????????????????????????????????????????????? | | ?????????????????????????????????????????????????? | | ?????????????????????????????????????????????????? | | ?????????????????????????????????????????????????? | | ?????????????????????????????????????????????????? | | ?????????????????????????????????????????????????? | | ?????????????????????????????????????????????????? | | ?????????????????????????????????????????????????? | | ?????????????????????????????????????????????????? | | ?????????????????????????????????????????????????? | | ?????????????????????????????????????????????????? | | ?????????????????????????????????????????????????? | | ?????????????????????????????????????????????????? | | ?????????????????????????????????????????????????? | | ?????????????????????????????????????????????????? | | ?????????????????????####????????????????????????? | | ?????????????????????? ????????????????????????? | | ?????????????????????? ????????????????????????? | | ?????????????????????? ????????????????????????? | | ??????????????????????? #???????????????????????? | | ??????????????????????? #???????????????????????? | | ???????????????????????# #???????????????????????? | | ???????????????????????# ##??????????????????????? | | ???????????????????????+ ??????????????????????? | | ???????????????????????# #??????????????????????? | | ???????????????????????# @#####+###?? ???????????? | | ???????????????????????# + """ ? ???????????? | | ???????????????????????#s## = """ ? ???????????? | | ???????????????????##### #? """ ? ???????????? | | ???????????????????+ #?? # ?????????### | | ???????????????????#####u#??"" # ??????? " | | ???????????????????????# #???Y # ?????## | | ??????? ??????????????# #???" ! # ###### | | ????#""" ?????????????# #???? # # | | ????# "" ??????????####/############ # | | ????# =???##+##### #??# # | | ?#???? ???+ + #??# # | | ?# ???? ???# # #??# # | | ## ######/#### # """"" #??# # | | # # """"" #??# # | | # # """ #### # | | # / + %% # | | # # #### # | | # # = #??# # | | # ###### # #??# # | | # #????# # "" "" #??# #??###"" | | #????# # ""G"" #??# ##### | | ######+###?#########???# | | # ???????????????#######! "" | | # """ ""???????????????????#^ "" | +----------------------------------------------------+ Best States ------------- Heat Dissipation 64 Energy Generation 23 Energy Capacity 290 Matter Stores 300 Matter Capacity 300 Sight Range 16 Terrain Scan Density 10 Base Temperature (-) 100 Armor Coverage 600 Weapon Shielding 66 Evasion (%) 50 Targeting Accuracy 8 Melee Accuracy 6 Recoil Reduction 4 Offensive Hacking 10 Defensive Hacking 10 Item Schematics ----------------- Hrd. Medium Armor Plating | -8/Materials | Scanalyzed Hpw. Tractor Beam | -8/Materials | Scanalyzed Graphene Brace | -8/Materials | Scanalyzed Robot Schematics ------------------ G-34 Mercenary | -9/Materials | Hacked Fabricated ------------ Nothing Repaired ---------- Graphene Brace | 99% | -8/Materials | Corrupted Arm. Treads | 67% | -8/Materials Imp. Treads | 61% | -8/Materials Studied --------- Arm. Treads | -8/Materials | Hacked Alien Tech Used ----------------- None Achievements -------------- Z1$+NX3F=JRE3_ZNQR Challenges ------------ None Game ------ Seed NetworkedHypertargetingArray Manual? 0 Play Time 01:30:26 Cumulative 42.7 hours Start 2025.10.31 @ 13:44:56 End 2025.10.31 @ 15:14:06 Sessions 1 Manual Loads 0 Difficulty Rogue Special Mode None Game No. 52 Rogue 52 Adventurer 0 Explorer 0 Win Type - Total 0 Types 0/0/0/0/0/0/0/0/0/0 Lore% 11 Gallery% 31 Achievement% 23 Wizard Run 0 Options --------- Layout 0 ASCII 0 Keyboard 1 Movement Arrows Keybinds 0 Fullscreen 1 Font 24/Smallcaps Map View 76x50 Zoom Use 0% Tactical HUD 1 Map Filters NONE Filters NONE Steam 1 RUN: 0ae92bc7-86d9-43d5-b492-c201eb2de939